fUST/lending_fUST_20250220
["ID","MTS","AMOUNT","RATE_DAILY","PERIOD"]
[353768072,1740025833402,-502.28291121,0.00013698,2]
[353768073,1740025833412,-500.0,0.00013698,2]
[353768074,1740025833422,-500.0,0.00013698,2]
[353768075,1740025833432,-500.0,0.00013698,2]
[353768076,1740025833444,-504.10493803,0.00013698,2]
[353768077,1740025833457,-500.0,0.00013698,2]
[353768078,1740025833468,-25.06907799,0.00013698,2]
[353768091,1740025840273,-501.99302645,0.00013698,2]
[353768092,1740025840283,-500.0,0.00013698,2]
[353768093,1740025840293,-690.76,0.00013698,2]
[353768094,1740025840304,-500.0,0.00013698,2]
[353768095,1740025840314,-500.0,0.00013698,2]
[353768096,1740025840325,-500.0,0.00013698,2]
[353768097,1740025840334,-630.64421546,0.00013698,2]
[353768098,1740025840344,-500.0,0.00013698,2]
[353768099,1740025840354,-500.0,0.00013698,2]
[353768100,1740025840363,-502.77628447,0.00013698,2]
[353768101,1740025840372,-586.08098828,0.00013698,2]
[353768102,1740025840381,-500.0,0.00013698,2]
[353768103,1740025840391,-574.63,0.00013698,2]
[353768104,1740025840400,-500.0,0.00013698,2]
[353768105,1740025840410,-500.0,0.00013698,2]
[353768106,1740025840419,-500.0,0.00013698,2]
[353768107,1740025840428,-500.0,0.00013698,2]
[353768108,1740025840439,-501.7794354,0.00013698,2]
[353768109,1740025840452,-332.64397543,0.00013698,2]
[353768110,1740025840460,-506.4513388,0.00013698,2]
[353768111,1740025840469,-644.4,0.00013698,2]
[353768112,1740025840479,-503.18491287,0.00013698,2]
[353768113,1740025840488,-500.0,0.00013698,2]
[353768114,1740025840497,-500.0,0.00013698,2]
[353768115,1740025840506,-500.0,0.00013698,2]
[353768116,1740025840516,-500.0,0.00013698,2]
[353768117,1740025840526,-992.1,0.00013698,2]
[353768118,1740025840536,-500.0,0.00013698,2]
[353768119,1740025840545,-500.0,0.00013698,2]
[353768120,1740025840555,-500.0,0.00013698,2]
[353768121,1740025840564,-1589.13,0.00013698,2]
[353768122,1740025840574,-500.0,0.00013698,2]
[353768123,1740025840583,-501.36194394,0.00013698,2]
[353768124,1740025840593,-500.0,0.00013698,2]
[353768125,1740025840603,-500.0,0.00013698,2]
[353768126,1740025840612,-500.0,0.00013698,2]
[353768127,1740025840621,-500.0,0.00013698,2]
[353768128,1740025840631,-500.0,0.00013698,2]
[353768129,1740025840640,-500.0,0.00013698,2]
[353768130,1740025840650,-500.0,0.00013698,2]
[353768131,1740025840659,-1067.36,0.00013698,2]
[353768132,1740025840668,-502.22619216,0.00013698,2]
[353768133,1740025840677,-500.0,0.00013698,2]
[353768134,1740025840686,-518.91001123,0.00013698,2]
[353768135,1740025840695,-500.0,0.00013698,2]
[353768136,1740025840705,-500.0,0.00013698,2]
[353768137,1740025840715,-501.37434676,0.00013698,2]
[353768138,1740025840724,-502.71,0.00013698,2]
[353768139,1740025840734,-500.0,0.00013698,2]
[353768140,1740025840743,-500.0,0.00013698,2]
[353768141,1740025840752,-500.0,0.00013698,2]
[353768142,1740025840762,-500.0,0.00013698,2]
[353768143,1740025840771,-500.0,0.00013698,2]
[353768144,1740025840780,-500.0,0.00013698,2]
[353768145,1740025840790,-500.0,0.00013698,2]
[353768146,1740025840799,-500.0,0.00013698,2]
[353768147,1740025840809,-500.0,0.00013698,2]
[353768148,1740025840819,-500.0,0.00013698,2]
[353768149,1740025840829,-500.0,0.00013698,2]
[353768150,1740025840839,-513.91,0.00013698,2]
[353768151,1740025840849,-500.0,0.00013698,2]
[353768152,1740025840858,-500.0,0.00013698,2]
[353768153,1740025840867,-526.87,0.00013698,2]
[353768154,1740025840876,-500.0,0.00013698,2]
[353768155,1740025840885,-500.0,0.00013698,2]
[353768156,1740025840894,-502.53181479,0.00013698,2]
[353768157,1740025840904,-500.0,0.00013698,2]
[353768158,1740025840913,-500.0,0.00013698,2]
[353768159,1740025840922,-500.0,0.00013698,2]
[353768160,1740025840932,-1000.74,0.00013698,2]
[353768161,1740025840942,-500.0,0.00013698,2]
[353768162,1740025840951,-500.0,0.00013698,2]
[353768163,1740025840960,-758.64,0.00013698,2]
[353768164,1740025840970,-500.0,0.00013698,2]
[353768165,1740025840980,-3368.38,0.00013698,2]
[353768166,1740025840989,-500.0,0.00013698,2]
[353768167,1740025841000,-500.0,0.00013698,2]
[353768168,1740025841012,-503.81940396,0.00013698,2]
[353768169,1740025841022,-500.0,0.00013698,2]
[353768170,1740025841032,-500.0,0.00013698,2]
[353768171,1740025841042,-500.0,0.00013698,2]
[353768172,1740025841052,-500.0,0.00013698,2]
[353768173,1740025841061,-500.0,0.00013698,2]
[353768174,1740025841070,-500.0,0.00013698,2]
[353768175,1740025841080,-500.0,0.00013698,2]
[353768176,1740025841090,-500.0,0.00013698,2]
[353768177,1740025841100,-500.0,0.00013698,2]
[353768178,1740025841111,-772.43,0.00013698,2]
[353768179,1740025841120,-500.0,0.00013698,2]
[353768180,1740025841129,-631.32,0.00013698,2]
[353768181,1740025841139,-587.01,0.00013698,2]
[353768182,1740025841148,-500.0,0.00013698,2]
[353768183,1740025841158,-500.0,0.00013698,2]
[353768184,1740025841167,-500.0,0.00013698,2]
[353768185,1740025841176,-500.0,0.00013698,2]
[353768186,1740025841186,-500.0,0.00013698,2]
[353768187,1740025841195,-500.0,0.00013698,2]
[353768188,1740025841204,-1390.61,0.00013698,2]
[353768189,1740025841214,-1507.18,0.00013698,2]
[353768190,1740025841224,-500.0,0.00013698,2]
[353768191,1740025841234,-500.0,0.00013698,2]
[353768192,1740025841243,-3855.58,0.00013698,2]
[353768193,1740025841252,-500.0,0.00013698,2]
[353768194,1740025841263,-776.5,0.00013698,2]
[353768195,1740025841272,-500.0,0.00013698,2]
[353768196,1740025841282,-11189.16,0.00013698,2]
[353768197,1740025841292,-500.0,0.00013698,2]
[353768198,1740025841301,-500.0,0.00013698,2]
[353768199,1740025841311,-500.0,0.00013698,2]
[353768200,1740025841319,-502.69353903,0.00013698,2]
[353768201,1740025841329,-412.37302284,0.00013772,2]
[353768202,1740025841339,-500.0,0.0001378,2]
[353768203,1740025841348,-500.0,0.0001378,2]
[353768204,1740025841357,-500.0,0.0001378,2]
[353768205,1740025841367,-500.0,0.0001378,2]
[353768206,1740025841376,-500.0,0.0001378,2]
[353768207,1740025841386,-500.0,0.0001378,2]
[353768208,1740025841395,-500.0,0.0001378,2]
[353768209,1740025841404,-500.0,0.0001378,2]
[353768210,1740025841414,-500.0,0.0001378,2]
[353768211,1740025841423,-500.0,0.0001378,2]
[353768212,1740025841433,-500.0,0.0001378,2]
[353768213,1740025841446,-500.0,0.0001378,2]
[353768214,1740025841456,-503.18941682,0.0001378,2]
[353768215,1740025841464,-500.0,0.0001378,2]
[353768216,1740025841474,-500.0,0.0001378,2]
[353768217,1740025841484,-500.0,0.0001378,2]
[353768218,1740025841493,-330.27635412,0.0001378,2]
[353768219,1740025841503,-500.0,0.0001378,2]
[353768220,1740025841512,-511.1179375,0.0001378,2]
[353768221,1740025841522,-500.0,0.0001378,2]
[353768222,1740025841531,-500.0,0.0001378,2]
[353768223,1740025841541,-626.62987979,0.0001378,2]
[353768224,1740025841550,-500.0,0.0001378,2]
[353768225,1740025841559,-500.0,0.0001378,2]
[353768226,1740025841568,-500.0,0.0001378,2]
[353768227,1740025841577,-500.0,0.0001378,2]
[353768228,1740025841586,-500.0,0.0001378,2]
[353768229,1740025841595,-500.0,0.0001378,2]
[353768230,1740025841605,-500.0,0.0001378,2]
[353768231,1740025841615,-690.76,0.0001378,2]
[353768232,1740025841624,-500.0,0.0001378,2]
[353768233,1740025841633,-500.0,0.0001378,2]
[353768234,1740025841643,-500.0,0.0001378,2]
[353768235,1740025841653,-500.0,0.0001378,2]
[353768236,1740025841662,-500.0,0.0001378,2]
[353768237,1740025841671,-500.0,0.0001378,2]
[353768238,1740025841680,-441.82,0.0001378,2]
[353768239,1740025841689,-500.0,0.0001378,2]
[353768240,1740025841699,-644.4,0.0001378,2]
[353768241,1740025841707,-500.0,0.0001378,2]
[353768242,1740025841716,-500.0,0.0001378,2]
[353768243,1740025841725,-500.0,0.0001378,2]
[353768244,1740025841734,-992.1,0.0001378,2]
[353768245,1740025841744,-500.0,0.0001378,2]
[353768246,1740025841753,-1589.13,0.0001378,2]
[353768247,1740025841762,-1067.36,0.0001378,2]
[353768248,1740025841771,-500.0,0.0001378,2]
[353768249,1740025841780,-502.71,0.0001378,2]
[353768250,1740025841789,-372.74,0.0001378,2]
[353768251,1740025841799,-500.0,0.0001378,2]
[353768252,1740025841808,-568.87340108,0.0001378,2]
[353768253,1740025841817,-500.0,0.0001378,2]
[353768254,1740025841827,-500.0,0.0001378,2]
[353768255,1740025841836,-526.87,0.0001378,2]
[353768256,1740025841845,-500.0,0.0001378,2]
[353768257,1740025841854,-509.04507611,0.0001378,2]
[353768258,1740025841863,-1000.74,0.0001378,2]
[353768259,1740025841872,-758.64,0.0001378,2]
[353768260,1740025841881,-3368.38,0.0001378,2]
[353768261,1740025841890,-500.0,0.0001378,2]
[353768262,1740025841900,-500.0,0.0001378,2]
[353768263,1740025841909,-333.93,0.0001378,2]
[353768264,1740025841918,-500.0,0.0001378,2]
[353768265,1740025841928,-500.0,0.0001378,2]
[353768266,1740025841937,-500.0,0.0001378,2]
[353768267,1740025841946,-405.11,0.0001378,2]
[353768268,1740025841955,-772.43,0.0001378,2]
[353768269,1740025841964,-500.0,0.0001378,2]
[353768270,1740025841973,-500.0,0.0001378,2]
[353768271,1740025841982,-500.0,0.0001378,2]
[353768272,1740025841991,-1390.61,0.0001378,2]
[353768273,1740025842000,-1507.18,0.0001378,2]
[353768274,1740025842009,-500.0,0.0001378,2]
[353768275,1740025842019,-3855.58,0.0001378,2]
[353768276,1740025842029,-500.0,0.0001378,2]
[353768277,1740025842038,-776.5,0.0001378,2]
[353768278,1740025842048,-11189.16,0.0001378,2]
[353768279,1740025842057,-500.0,0.0001378,2]
[353768280,1740025842066,-500.0,0.0001378,2]
[353768281,1740025842075,-500.0,0.0001378,2]
[353768282,1740025842084,-292.62596063,0.00013862,2]
[353768283,1740025842093,-500.0,0.00013863,2]
[353768284,1740025842102,-500.0,0.00013863,2]
[353768285,1740025842111,-500.0,0.00013863,2]
[353768286,1740025842120,-500.0,0.00013863,2]
[353768287,1740025842130,-500.0,0.00013863,2]
[353768288,1740025842139,-500.0,0.00013863,2]
[353768289,1740025842149,-500.0,0.00013863,2]
[353768290,1740025842159,-500.0,0.00013863,2]
[353768291,1740025842168,-500.0,0.00013863,2]
[353768292,1740025842178,-500.0,0.00013863,2]
[353768293,1740025842187,-500.0,0.00013863,2]
[353768294,1740025842197,-500.0,0.00013863,2]
[353768295,1740025842206,-500.0,0.00013863,2]
[353768296,1740025842215,-500.0,0.00013863,2]
[353768297,1740025842226,-500.0,0.00013863,2]
[353768298,1740025842236,-500.0,0.00013863,2]
[353768299,1740025842245,-500.0,0.00013863,2]
[353768300,1740025842256,-690.76,0.00013863,2]
[353768301,1740025842266,-500.0,0.00013863,2]
[353768302,1740025842276,-500.0,0.00013863,2]
[353768303,1740025842285,-500.0,0.00013863,2]
[353768304,1740025842295,-500.0,0.00013863,2]
[353768305,1740025842304,-500.0,0.00013863,2]
[353768306,1740025842313,-644.4,0.00013863,2]
[353768307,1740025842323,-500.0,0.00013863,2]
[353768308,1740025842333,-500.0,0.00013863,2]
[353768309,1740025842342,-500.0,0.00013863,2]
[353768310,1740025842351,-992.1,0.00013863,2]
[353768311,1740025842361,-1589.13,0.00013863,2]
[353768312,1740025842370,-1067.36,0.00013863,2]
[353768313,1740025842380,-500.0,0.00013863,2]
[353768314,1740025842389,-502.71,0.00013863,2]
[353768315,1740025842399,-500.0,0.00013863,2]
[353768316,1740025842408,-500.0,0.00013863,2]
[353768317,1740025842417,-526.87,0.00013863,2]
[353768318,1740025842427,-500.0,0.00013863,2]
[353768319,1740025842437,-1000.74,0.00013863,2]
[353768320,1740025842450,-758.64,0.00013863,2]
[353768321,1740025842459,-3368.38,0.00013863,2]
[353768322,1740025842470,-504.63,0.00013863,2]
[353768323,1740025842480,-500.0,0.00013863,2]
[353768324,1740025842490,-500.0,0.00013863,2]
[353768325,1740025842500,-772.43,0.00013863,2]
[353768326,1740025842510,-500.0,0.00013863,2]
[353768327,1740025842520,-574.1,0.00013863,2]
[353768328,1740025842528,-500.0,0.00013863,2]
[353768329,1740025842538,-1390.61,0.00013863,2]
[353768330,1740025842547,-1507.18,0.00013863,2]
[353768331,1740025842557,-580.19,0.00013863,2]
[353768332,1740025842566,-3855.58,0.00013863,2]
[353768333,1740025842575,-317.40383581,0.00013863,2]
[353768334,1740025842584,-776.5,0.00013863,2]
[353768335,1740025842593,-11189.16,0.00013863,2]
[353768336,1740025842602,-500.0,0.00013863,2]
[353768337,1740025842611,-500.0,0.00013863,2]
[353768338,1740025842621,-500.0,0.00013863,2]
[353768339,1740025842630,-1454.2091712,0.0001389,2]
[353768340,1740025842639,-557.1710486,0.0001389,2]
[353768341,1740025842648,-557.1710486,0.0001389,2]
[353768342,1740025842657,-557.1710486,0.0001389,2]
[353768343,1740025842667,-557.1710486,0.0001389,2]
[353768344,1740025842676,-557.1710486,0.0001389,2]
[353768345,1740025842686,-557.1710486,0.0001389,2]
[353768347,1740025842696,-557.1710486,0.0001389,2]
[353768348,1740025842707,-557.1710486,0.0001389,2]
[353768349,1740025842718,-557.1710486,0.0001389,2]
[353768351,1740025842727,-557.1710486,0.0001389,2]
[353768353,1740025842736,-557.1710486,0.0001389,2]
[353768354,1740025842745,-557.1710486,0.0001389,2]
[353768356,1740025842755,-1117.7852178,0.0001389,2]
[353768358,1740025842765,-1114.2377602,0.0001389,2]
[353768360,1740025842774,-557.1710486,0.0001389,2]
[353768362,1740025842783,-557.1710486,0.0001389,2]
[353768363,1740025842793,-557.1710486,0.0001389,2]
[353768364,1740025842802,-557.1710486,0.0001389,2]
[353768365,1740025842811,-557.1710486,0.0001389,2]
[353768366,1740025842820,-557.1710486,0.0001389,2]
[353768367,1740025842830,-557.1710486,0.0001389,2]
[353768368,1740025842840,-557.1710486,0.0001389,2]
[353768369,1740025842850,-1113.8725807,0.0001389,2]
[353768371,1740025842859,-1114.2377602,0.0001389,2]
[353768372,1740025842868,-557.1710486,0.0001389,2]
[353768374,1740025842878,-557.1710486,0.0001389,2]
[353768375,1740025842888,-557.1710486,0.0001389,2]
[353768376,1740025842897,-557.1710486,0.0001389,2]
[353768377,1740025842907,-557.1710486,0.0001389,2]
[353768378,1740025842916,-557.1710486,0.0001389,2]
[353768379,1740025842926,-557.1710486,0.0001389,2]
[353768380,1740025842935,-230.25543275,0.00013891,2]
[353768381,1740025842944,-500.0,0.00013945,2]
[353768382,1740025842954,-500.0,0.00013945,2]
[353768383,1740025842962,-500.0,0.00013945,2]
[353768384,1740025842972,-500.0,0.00013945,2]
[353768385,1740025842982,-500.0,0.00013945,2]
[353768386,1740025842991,-500.0,0.00013945,2]
[353768387,1740025843001,-500.0,0.00013945,2]
[353768388,1740025843010,-430.66772529,0.00013945,2]
[353768389,1740025843021,-500.0,0.00013945,2]
[353768390,1740025843030,-500.0,0.00013945,2]
[353768391,1740025843039,-326.8092449,0.00013945,2]
[353768392,1740025843049,-406.71228679,0.00013945,2]
[353768393,1740025843058,-254.86747011,0.00013945,2]
[353768394,1740025843068,-500.0,0.00013945,2]
[353768395,1740025843077,-690.76,0.00013945,2]
[353768396,1740025843087,-500.0,0.00013945,2]
[353768397,1740025843096,-500.0,0.00013945,2]
[353768398,1740025843106,-500.0,0.00013945,2]
[353768399,1740025843115,-535.49,0.00013945,2]
[353768400,1740025843125,-644.4,0.00013945,2]
[353768401,1740025843134,-500.0,0.00013945,2]
[353768402,1740025843144,-500.0,0.00013945,2]
[353768403,1740025843154,-500.0,0.00013945,2]
[353768404,1740025843164,-992.1,0.00013945,2]
[353768405,1740025843174,-1589.13,0.00013945,2]
[353768406,1740025843183,-1067.36,0.00013945,2]
[353768407,1740025843193,-500.0,0.00013945,2]
[353768408,1740025843203,-502.71,0.00013945,2]
[353768409,1740025843212,-500.0,0.00013945,2]
[353768410,1740025843221,-500.0,0.00013945,2]
[353768411,1740025843231,-526.87,0.00013945,2]
[353768412,1740025843241,-1000.74,0.00013945,2]
[353768413,1740025843250,-758.64,0.00013945,2]
[353768414,1740025843259,-3368.38,0.00013945,2]
[353768415,1740025843391,-500.0,0.00013945,2]
[353768416,1740025843402,-500.0,0.00013945,2]
[353768417,1740025843412,-772.43,0.00013945,2]
[353768418,1740025843422,-500.0,0.00013945,2]
[353768419,1740025843432,-1390.61,0.00013945,2]
[353768420,1740025843445,-1507.18,0.00013945,2]
[353768421,1740025843455,-3855.58,0.00013945,2]
[353768422,1740025843465,-776.5,0.00013945,2]
[353768423,1740025843474,-11189.16,0.00013945,2]
[353768424,1740025843486,-500.0,0.00013945,2]
[353768425,1740025843495,-500.0,0.00013945,2]
[353768426,1740025843505,-500.0,0.00013945,2]
[353768427,1740025843515,-517.4991621,0.00013973,2]
[353768428,1740025843524,-500.0,0.00013973,2]
[353768429,1740025843535,-500.23237519,0.00013973,2]
[353768430,1740025843544,-500.0,0.00013973,2]
[353768431,1740025843554,-479.13883425,0.00013973,2]
[353768432,1740025843563,-500.0,0.00013973,2]
[353768433,1740025843572,-500.0,0.00013973,2]
[353768434,1740025843582,-500.0,0.00013973,2]
[353768435,1740025843591,-35826.62690194,0.00013986,2]
[353768436,1740025843601,-35826.62690194,0.00013988,2]
[353768437,1740025843611,-71653.25380391,0.00013988,2]
[353768438,1740025843620,-406.52348735,0.0001399,2]
[353768439,1740025843630,-4097.20486937,0.0001399,2]
[353768440,1740025843639,-153.659182,0.0001399,2]
[353768441,1740025843648,-153.659182,0.0001399,2]
[353768442,1740025843658,-35826.62690194,0.00013991,2]
[353768443,1740025843667,-2247.277575,0.00013991,2]
[353768444,1740025843677,-2247.277575,0.00013991,2]
[353768445,1740025843687,-452.936363,0.00013991,2]
[353768446,1740025843696,-452.936363,0.00013991,2]
[353768447,1740025843705,-151.0,0.00013991,2]
[353768448,1740025843714,-151.0,0.00013991,2]
[353768449,1740025843725,-1127.758018,0.00013991,2]
[353768450,1740025843734,-1127.758018,0.00013991,2]
[353768451,1740025843743,-674.791754,0.00013991,2]
[353768452,1740025843753,-674.791754,0.00013991,2]
[353768453,1740025843762,-681.942507,0.00013991,2]
[353768454,1740025843773,-681.942507,0.00013991,2]
[353768455,1740025843783,-151.0,0.00013991,2]
[353768456,1740025843793,-710.690771,0.00013991,2]
[353768457,1740025843802,-710.690771,0.00013991,2]
[353768458,1740025843812,-151.0,0.00013991,2]
[353768459,1740025843822,-151.0,0.00013991,2]
[353768460,1740025843832,-337.508987,0.00013991,2]
[353768461,1740025843842,-295.005091,0.00013991,2]
[353768462,1740025843851,-337.508987,0.00013991,2]
[353768463,1740025843860,-295.005091,0.00013991,2]
[353768464,1740025843870,-153.659182,0.00013996,2]
[353768465,1740025843879,-153.659182,0.00013996,2]
[353768466,1740025843889,-71653.25380391,0.00013997,2]
[353768467,1740025843899,-2247.277575,0.00013998,2]
[353768468,1740025843909,-2247.277575,0.00013998,2]
[353768469,1740025843918,-452.936363,0.00013998,2]
[353768470,1740025843927,-452.936363,0.00013998,2]
[353768471,1740025843937,-151.0,0.00013998,2]
[353768472,1740025843947,-151.0,0.00013998,2]
[353768473,1740025843957,-1127.758018,0.00013998,2]
[353768474,1740025843967,-1127.758018,0.00013998,2]
[353768475,1740025843976,-674.791754,0.00013998,2]
[353768476,1740025843986,-674.791754,0.00013998,2]
[353768477,1740025843995,-681.942507,0.00013998,2]
[353768478,1740025844004,-681.942507,0.00013998,2]
[353768479,1740025844014,-151.0,0.00013998,2]
[353768480,1740025844024,-710.690771,0.00013998,2]
[353768481,1740025844034,-710.690771,0.00013998,2]
[353768482,1740025844043,-151.0,0.00013998,2]
[353768483,1740025844052,-151.0,0.00013998,2]
[353768484,1740025844062,-337.508987,0.00013998,2]
[353768485,1740025844071,-295.005091,0.00013998,2]
[353768486,1740025844081,-337.508987,0.00013998,2]
[353768487,1740025844090,-295.005091,0.00013998,2]
[353768488,1740025844100,-71653.25380391,0.00013998,2]
[353768489,1740025844110,-230.25543273,0.00014018,2]
[353768490,1740025844119,-500.0,0.00014027,2]
[353768491,1740025844128,-500.0,0.00014027,2]
[353768492,1740025844137,-500.0,0.00014027,2]
[353768493,1740025844146,-500.0,0.00014027,2]
[353768494,1740025844156,-500.0,0.00014027,2]
[353768495,1740025844166,-500.0,0.00014027,2]
[353768496,1740025844176,-690.76,0.00014027,2]
[353768497,1740025844186,-518.34415604,0.00014027,2]
[353768498,1740025844195,-500.0,0.00014027,2]
[353768499,1740025844205,-500.0,0.00014027,2]
[353768500,1740025844215,-644.4,0.00014027,2]
[353768501,1740025844225,-500.0,0.00014027,2]
[353768502,1740025844235,-500.0,0.00014027,2]
[353768503,1740025844244,-500.0,0.00014027,2]
[353768504,1740025844253,-992.1,0.00014027,2]
[353768505,1740025844263,-1589.13,0.00014027,2]
[353768506,1740025844273,-1067.36,0.00014027,2]
[353768507,1740025844283,-500.0,0.00014027,2]
[353768508,1740025844293,-502.71,0.00014027,2]
[353768509,1740025844303,-500.0,0.00014027,2]
[353768510,1740025844313,-500.0,0.00014027,2]
[353768511,1740025844323,-526.87,0.00014027,2]
[353768512,1740025844332,-1000.74,0.00014027,2]
[353768513,1740025844343,-758.64,0.00014027,2]
[353768514,1740025844353,-3368.38,0.00014027,2]
[353768515,1740025844363,-421.7878184,0.00014027,2]
[353768516,1740025844373,-500.0,0.00014027,2]
[353768517,1740025844382,-772.43,0.00014027,2]
[353768518,1740025844392,-500.0,0.00014027,2]
[353768519,1740025844402,-1390.61,0.00014027,2]
[353768520,1740025844412,-1507.18,0.00014027,2]
[353768521,1740025844422,-153.659182,0.00014027,2]
[353768522,1740025844432,-3855.58,0.00014027,2]
[353768523,1740025844444,-153.659182,0.00014027,2]
[353768524,1740025844455,-776.5,0.00014027,2]
[353768525,1740025844465,-11189.16,0.00014027,2]
[353768526,1740025844474,-500.0,0.00014027,2]
[353768527,1740025844483,-500.0,0.00014027,2]
[353768528,1740025844494,-500.0,0.00014027,2]
[353768529,1740025844504,-500.0,0.00014109,2]
[353768530,1740025844514,-500.0,0.00014109,2]
[353768531,1740025844524,-500.0,0.00014109,2]
[353768532,1740025844533,-500.0,0.00014109,2]
[353768533,1740025844543,-500.0,0.00014109,2]
[353768534,1740025844553,-500.0,0.00014109,2]
[353768535,1740025844563,-690.76,0.00014109,2]
[353768536,1740025844572,-500.0,0.00014109,2]
[353768537,1740025844581,-500.0,0.00014109,2]
[353768538,1740025844591,-644.4,0.00014109,2]
[353768539,1740025844601,-500.0,0.00014109,2]
[353768540,1740025844611,-500.0,0.00014109,2]
[353768541,1740025844620,-500.0,0.00014109,2]
[353768542,1740025844630,-992.1,0.00014109,2]
[353768543,1740025844640,-1589.13,0.00014109,2]
[353768544,1740025844651,-1067.36,0.00014109,2]
[353768545,1740025844660,-282.57845461,0.00014109,2]
[353768546,1740025844669,-502.71,0.00014109,2]
[353768547,1740025844679,-621.38089661,0.00014109,2]
[353768548,1740025844689,-526.87,0.00014109,2]
[353768549,1740025844699,-1000.74,0.00014109,2]
[353768550,1740025844708,-758.64,0.00014109,2]
[353768551,1740025844718,-3368.38,0.00014109,2]
[353768552,1740025844728,-500.0,0.00014109,2]
[353768553,1740025844738,-772.43,0.00014109,2]
[353768554,1740025844747,-500.0,0.00014109,2]
[353768555,1740025844756,-1390.61,0.00014109,2]
[353768556,1740025844766,-1507.18,0.00014109,2]
[353768557,1740025844776,-3855.58,0.00014109,2]
[353768558,1740025844785,-776.5,0.00014109,2]
[353768559,1740025844795,-11189.16,0.00014109,2]
[353768560,1740025844804,-486.47941237,0.00014109,2]
[353768561,1740025844814,-500.0,0.00014109,2]
[353768562,1740025844823,-644.62,0.00014109,2]
[353768563,1740025844833,-230.25543273,0.00014146,2]
[353768564,1740025844843,-153.4629433,0.00014164,2]
[353768565,1740025844852,-7438.69753278,0.00014178,2]
[353768566,1740025844861,-500.0,0.00014191,2]
[353768567,1740025844871,-500.0,0.00014191,2]
[353768568,1740025844881,-636.42,0.00014191,2]
[353768569,1740025844891,-2247.277575,0.00014191,2]
[353768570,1740025844900,-2247.277575,0.00014191,2]
[353768571,1740025844910,-452.936363,0.00014191,2]
[353768572,1740025844919,-452.936363,0.00014191,2]
[353768573,1740025844928,-500.0,0.00014191,2]
[353768574,1740025844938,-175.461755,0.00014191,2]
[353768575,1740025844948,-151.0,0.00014191,2]
[353768576,1740025844958,-1127.758018,0.00014191,2]
[353768577,1740025844967,-1127.758018,0.00014191,2]
[353768578,1740025844977,-674.791754,0.00014191,2]
[353768579,1740025844987,-674.791754,0.00014191,2]
[353768580,1740025844998,-240.12,0.00014191,2]
[353768581,1740025845007,-681.942507,0.00014191,2]
[353768582,1740025845018,-681.942507,0.00014191,2]
[353768583,1740025845028,-690.76,0.00014191,2]
[353768584,1740025845038,-500.0,0.00014191,2]
[353768585,1740025845048,-500.0,0.00014191,2]
[353768586,1740025845058,-644.4,0.00014191,2]
[353768587,1740025845067,-151.0,0.00014191,2]
[353768588,1740025845079,-500.0,0.00014191,2]
[353768589,1740025845090,-500.0,0.00014191,2]
[353768590,1740025845101,-500.0,0.00014191,2]
[353768591,1740025845112,-992.1,0.00014191,2]
[353768592,1740025845123,-710.690771,0.00014191,2]